Workbook

Sheet 最终核对发公告版本
A1: 贵阳市住房和城乡建设局2024年事业单位公开招聘工作人员总成绩及进入体检人员名单
A2: 序号 | B2: 姓名 | C2: 准考证号 | D2: 报考单位及代码 | E2: 报考岗位及代码 | F2: 笔试成绩 | G2: 笔试成绩 （百分制） | H2: 笔试成绩60%(A类、不组织专业测试B类） | I2: 笔试成绩30%（组织专业测试B类） | J2: 专业测试成绩 | K2: 专业测试成绩40% | L2: 笔试、专业测试总成绩 | M2: 面试成绩 | N2: 面试成绩40%（A类、不组织专业测试B类） | O2: 面试成绩30%（组织专业测试B类） | P2: 笔试、专业测试、面试总成绩 | Q2: 综合排名 | R2: 是否进入体检 | S2: 备注
A3: 1 | B3: 张凌霜 | C3: 1152013300704 | D3: 201010044贵阳市建筑管理处 | E3: 20101004403建筑市场管理员 | F3: 206 | G3: =F3*(1/3) -> 68.67 | H3: =G3*0.6 -> 41.20 | M3: 82.40 | N3: =M3*0.4 -> 32.96 | P3: =H3+N3 -> 74.16 | Q3: 1 | R3: 是
A4: 2 | B4: 陈惠洁 | C4: 1152013300226 | D4: 201010044贵阳市建筑管理处 | E4: 20101004403建筑市场管理员 | F4: 200.5 | G4: 66.83 | H4: 40.10 | M4: 82.60 | N4: 33.04 | P4: =H4+N4 -> 73.14 | Q4: 2 | R4: 否
A5: 3 | B5: 田向林 | C5: 1152013300701 | D5: 201010044贵阳市建筑管理处 | E5: 20101004403建筑市场管理员 | F5: 200 | G5: 66.67 | H5: 40.00 | M5: 80.40 | N5: 32.16 | P5: 72.16 | Q5: 3 | R5: 否
A6: 4 | B6: 王志尧 | C6: 1152013302016 | D6: 201010047 贵阳市工程设计质量监督站 | E6: 20101004701工作人员 | F6: 218.5 | G6: 72.83 | H6: 43.70 | M6: 79.80 | N6: 31.92 | P6: 75.62 | Q6: 1 | R6: 是
A7: 5 | B7: 张磊 | C7: 1152013301601 | D7: 201010047 贵阳市工程设计质量监督站 | E7: 20101004701工作人员 | F7: 208 | G7: 69.33 | H7: 41.60 | M7: 81.00 | N7: 32.40 | P7: 74.00 | Q7: 2 | R7: 否
A8: 6 | B8: 张小林 | C8: 1152013301327 | D8: 201010047 贵阳市工程设计质量监督站 | E8: 20101004701工作人员 | F8: 216 | G8: 72.00 | H8: 43.20 | M8: 0.00 | N8: 0.00 | P8: 43.20 | Q8: 3 | R8: 否 | S8: 面试缺考
A9: 7 | B9: 陶倩倩 | C9: 1152013301717 | D9: 201010048 贵阳市房地产交易管理中心 | E9: 20101004802法务工作岗 | F9: 216.5 | G9: =F9*(1/3) -> 72.17 | H9: 43.30 | M9: 84.00 | N9: 33.60 | P9: 76.90 | Q9: 1 | R9: 是
A10: 8 | B10: 邓美琪 | C10: 1152013300426 | D10: 201010048 贵阳市房地产交易管理中心 | E10: 20101004802法务工作岗 | F10: 201 | G10: 67.00 | H10: 40.20 | M10: 77.10 | N10: 30.84 | P10: 71.04 | Q10: 2 | R10: 否
A11: 9 | B11: 安玲 | C11: 1152013301730 | D11: 201010048 贵阳市房地产交易管理中心 | E11: 20101004802法务工作岗 | F11: 199.5 | G11: 66.50 | H11: 39.90 | M11: 0.00 | N11: 0.00 | P11: 39.90 | Q11: 3 | R11: 否 | S11: 面试缺考
A12: 10 | B12: 王超越 | C12: 1152013000408 | D12: 201010044贵阳市建筑管理处 | E12: 20101004401 建筑工程质量安全监督员1 | F12: 197.5 | G12: 65.83 | I12: =G12*0.3 -> 19.75 | J12: 79 | K12: =J12*0.4 -> 31.60 | L12: =I12+K12 -> 51.35 | M12: 82.20 | O12: =M12*0.3 -> 24.66 | P12: =L12+O12 -> 76.01 | Q12: 1 | R12: 是
A13: 11 | B13: 王迪 | C13: 1152013001512 | D13: 201010044贵阳市建筑管理处 | E13: 20101004401 建筑工程质量安全监督员1 | F13: 188 | G13: 62.67 | I13: =G13*0.3 -> 18.80 | J13: 71 | K13: =J13*0.4 -> 28.40 | L13: =I13+K13 -> 47.20 | M13: 79.80 | O13: 23.94 | P13: =L13+O13 -> 71.14 | Q13: 2 | R13: 否
A14: 12 | B14: 申一帜 | C14: 1152013001911 | D14: 201010044贵阳市建筑管理处 | E14: 20101004401 建筑工程质量安全监督员1 | F14: 179 | G14: 59.67 | I14: 17.90 | J14: 75 | K14: 30.00 | L14: 47.90 | M14: 0.00 | O14: 0.00 | P14: 47.90 | Q14: 3 | R14: 否 | S14: 面试缺考
A15: 13 | B15: 廖鸿逸 | C15: 1152013301519 | D15: 201010044贵阳市建筑管理处 | E15: 20101004402 建筑工程质量安全监督员2 | F15: 196.5 | G15: 65.50 | I15: 19.65 | J15: 76 | K15: 30.40 | L15: 50.05 | M15: 84.20 | O15: 25.26 | P15: 75.31 | Q15: 1 | R15: 是
A16: 14 | B16: 何鹏 | C16: 1152013301401 | D16: 201010044贵阳市建筑管理处 | E16: 20101004402 建筑工程质量安全监督员2 | F16: 187 | G16: 62.33 | I16: 18.70 | J16: 78 | K16: 31.20 | L16: 49.90 | M16: 83.40 | O16: 25.02 | P16: 74.92 | Q16: 2 | R16: 否
A17: 15 | B17: 杨胜军 | C17: 1152013301501 | D17: 201010044贵阳市建筑管理处 | E17: 20101004402 建筑工程质量安全监督员2 | F17: 188.5 | G17: 62.83 | I17: 18.85 | J17: 78 | K17: 31.20 | L17: 50.05 | M17: 78.40 | O17: 23.52 | P17: 73.57 | Q17: 3 | R17: 否
A18: 16 | B18: 罗丽娜 | C18: 1152013301029 | D18: 201010044贵阳市建筑管理处 | E18: 20101004404会计 | F18: 173 | G18: 57.67 | I18: 17.30 | J18: 88 | K18: 35.20 | L18: 52.50 | M18: 81.40 | O18: 24.42 | P18: 76.92 | Q18: 1 | R18: 是
A19: 17 | B19: 李明敏 | C19: 1152013302001 | D19: 201010044贵阳市建筑管理处 | E19: 20101004404会计 | F19: 183 | G19: 61.00 | I19: 18.30 | J19: 85 | K19: 34.00 | L19: 52.30 | M19: 79.00 | O19: 23.70 | P19: 76.00 | Q19: 2 | R19: 否
A20: 18 | B20: 贺久利 | C20: 1152013301212 | D20: 201010044贵阳市建筑管理处 | E20: 20101004404会计 | F20: 175 | G20: 58.33 | I20: 17.50 | J20: 78 | K20: 31.20 | L20: 48.70 | M20: 79.80 | O20: 23.94 | P20: 72.64 | Q20: 3 | R20: 否
A21: 19 | B21: 韦皓祯 | C21: 1152013300212 | D21: 201010045 贵阳市城市建设档案馆 | E21: 20101004501办公室工作人员 | F21: 204 | G21: 68.00 | I21: 20.40 | J21: 84 | K21: 33.60 | L21: 54.00 | M21: 81.00 | O21: 24.30 | P21: 78.30 | Q21: 1 | R21: 是
A22: 20 | B22: 赵玉薇 | C22: 1152013300728 | D22: 201010045 贵阳市城市建设档案馆 | E22: 20101004501办公室工作人员 | F22: 206 | G22: =F22*(1/3) -> 68.67 | I22: =G22*0.3 -> 20.60 | J22: 80 | K22: =J22*0.4 -> 32.00 | L22: =I22+K22 -> 52.60 | M22: 79.60 | O22: =M22*0.3 -> 23.88 | P22: =L22+O22 -> 76.48 | Q22: 2 | R22: 否
A23: 21 | B23: 黄佳睿 | C23: 1152013302026 | D23: 201010045 贵阳市城市建设档案馆 | E23: 20101004501办公室工作人员 | F23: 190 | G23: 63.33 | I23: 19.00 | J23: 68 | K23: 27.20 | L23: 46.20 | M23: 0.00 | O23: 0.00 | P23: 46.20 | Q23: 3 | R23: 否 | S23: 面试缺考
A24: 22 | B24: 蒋宇 | C24: 1152013300619 | D24: 201010047 贵阳市工程设计质量监督站 | E24: 20101004702专业技术岗工作人员 | F24: 174.5 | G24: 58.17 | I24: 17.45 | J24: 81 | K24: 32.40 | L24: 49.85 | M24: 80.40 | O24: 24.12 | P24: 73.97 | Q24: 1 | R24: 是
A25: 23 | B25: 石琳 | C25: 1152013301620 | D25: 201010047 贵阳市工程设计质量监督站 | E25: 20101004702专业技术岗工作人员 | F25: 160.5 | G25: 53.50 | I25: 16.05 | J25: 80 | K25: 32.00 | L25: 48.05 | M25: 77.60 | O25: 23.28 | P25: 71.33 | Q25: 2 | R25: 否
A26: 24 | B26: 邱兢 | C26: 1152013300201 | D26: 201010047 贵阳市工程设计质量监督站 | E26: 20101004702专业技术岗工作人员 | F26: 179.5 | G26: 59.83 | I26: 17.95 | J26: 73 | K26: 29.20 | L26: 47.15 | M26: 80.20 | O26: 24.06 | P26: 71.21 | Q26: 3 | R26: 否
A27: 25 | B27: 李烛康 | C27: 1152013301612 | D27: 201010048 贵阳市房地产交易管理中心 | E27: 20101004801财务工作岗 | F27: 193.5 | G27: 64.50 | I27: 19.35 | J27: 80 | K27: 32.00 | L27: 51.35 | M27: 78.60 | O27: 23.58 | P27: 74.93 | Q27: 1 | R27: 是
A28: 26 | B28: 卢利红 | C28: 1152013300425 | D28: 201010048 贵阳市房地产交易管理中心 | E28: 20101004801财务工作岗 | F28: 184 | G28: 61.33 | I28: 18.40 | J28: 82.5 | K28: 33.00 | L28: 51.40 | M28: 75.20 | O28: 22.56 | P28: 73.96 | Q28: 2 | R28: 否
A29: 27 | B29: 严冬梅 | C29: 1152013301703 | D29: 201010048 贵阳市房地产交易管理中心 | E29: 20101004801财务工作岗 | F29: 179 | G29: 59.67 | I29: 17.90 | J29: 83.5 | K29: 33.40 | L29: 51.30 | M29: 73.80 | O29: 22.14 | P29: 73.44 | Q29: 3 | R29: 否
A30: 28 | B30: 林晓帆 | C30: 1152013300917 | D30: 201010049贵阳市建设工程消防设计审查验收服务中心 | E30: 20101004901专业技术岗位 | F30: 179.5 | G30: 59.83 | I30: 17.95 | J30: 82 | K30: 32.80 | L30: 50.75 | M30: 82.40 | O30: 24.72 | P30: 75.47 | Q30: 1 | R30: 是
A31: 29 | B31: 范余辉 | C31: 1152013300825 | D31: 201010049贵阳市建设工程消防设计审查验收服务中心 | E31: 20101004901专业技术岗位 | F31: 207 | G31: 69.00 | I31: 20.70 | J31: 78 | K31: 31.20 | L31: 51.90 | M31: 77.80 | O31: 23.34 | P31: 75.24 | Q31: 2 | R31: 否
A32: 30 | B32: 肖润林 | C32: 1152013301007 | D32: 201010049贵阳市建设工程消防设计审查验收服务中心 | E32: 20101004901专业技术岗位 | F32: 200.5 | G32: 66.83 | I32: 20.05 | J32: 73 | K32: 29.20 | L32: 49.25 | M32: 80.80 | O32: 24.24 | P32: 73.49 | Q32: 3 | R32: 否
